[Event "Live Chess"]
[Site "Chess.com"]
[Date "2023.05.20"]
[Round "-"]
[White "Ninifu"]
[Black "McSlash1"]
[Result "0-1"]
[WhiteElo "1984"]
[BlackElo "2060"]
[TimeControl "300"]
[EndTime "11:35:13 PDT"]
[Termination "McSlash1 won on time"]

1. d4 {[%clk 0:04:56.6]} 1... Nf6 {[%clk 0:04:58.8]} 2. c4 {[%clk 0:04:54.1]}
2... g6 {[%clk 0:04:58.1]} 3. Nc3 {[%clk 0:04:53.3]} 3... d5 {[%clk 0:04:57.7]}
4. Nf3 {[%clk 0:04:51.7]} 4... Bg7 {[%clk 0:04:55.6]} 5. cxd5 {[%clk 0:04:51.1]}
5... Nxd5 {[%clk 0:04:55.5]} 6. e4 {[%clk 0:04:50.2]} 6... Nxc3 {[%clk
0:04:55.1]} 7. bxc3 {[%clk 0:04:49.8]} 7... O-O {[%clk 0:04:54.6]} 8. Be2 {[%clk
0:04:48.1]} 8... Bg4 {[%clk 0:04:52.7]} 9. O-O {[%clk 0:04:43.7]} 9... c5 {[%clk
0:04:51.8]} 10. Rb1 {[%clk 0:04:42.4]} 10... b6 {[%clk 0:04:44.4]} 11. e5 {[%clk
0:04:36.2]} 11... Nc6 {[%clk 0:04:35.7]} 12. Bf4 {[%clk 0:04:33.3]} 12... Bf5
{[%clk 0:04:30.9]} 13. Rc1 {[%clk 0:04:21.2]} 13... cxd4 {[%clk 0:04:17.2]} 14.
cxd4 {[%clk 0:04:19.7]} 14... Na5 {[%clk 0:04:16]} 15. d5 {[%clk 0:03:57.3]}
15... Rc8 {[%clk 0:04:07.2]} 16. Rxc8 {[%clk 0:03:51.2]} 16... Qxc8 {[%clk
0:04:07.1]} 17. d6 {[%clk 0:03:48.3]} 17... exd6 {[%clk 0:03:55.7]} 18. exd6
{[%clk 0:03:20.6]} 18... Rd8 {[%clk 0:03:53.9]} 19. Qd2 {[%clk 0:02:26.4]} 19...
Qe6 {[%clk 0:03:24]} 20. Ng5 {[%clk 0:01:34.7]} 20... Qf6 {[%clk 0:03:08.5]} 21.
g4 {[%clk 0:01:10]} 21... Bd7 {[%clk 0:02:54.6]} 22. Ne4 {[%clk 0:01:07]} 22...
Qh4 {[%clk 0:02:48.6]} 23. Bg3 {[%clk 0:01:02]} 23... Qh3 {[%clk 0:02:45.8]} 24.
Ng5 {[%clk 0:00:59.6]} 24... Qh6 {[%clk 0:02:31.5]} 25. Qd5 {[%clk 0:00:45.7]}
25... Rf8 {[%clk 0:02:21]} 26. h4 {[%clk 0:00:39.7]} 26... Bc6 {[%clk
0:02:11.8]} 27. Qd3 {[%clk 0:00:26.4]} 27... Bf6 {[%clk 0:02:10.3]} 28. Nf3
{[%clk 0:00:14.8]} 28... Qg7 {[%clk 0:02:07.3]} 29. g5 {[%clk 0:00:13.1]} 29...
Bd8 {[%clk 0:02:05.1]} 30. Be5 {[%clk 0:00:11.6]} 30... f6 {[%clk 0:02:04]} 31.
Bb2 {[%clk 0:00:04.4]} 31... Qf7 {[%clk 0:02:01.7]} 0-1

[Event "Live Chess"]
[Site "Chess.com"]
[Date "2023.05.20"]
[Round "-"]
[White "AdamOwls"]
[Black "Olisingapore"]
[Result "0-1"]
[WhiteElo "1931"]
[BlackElo "1917"]
[TimeControl "300"]
[EndTime "11:35:37 PDT"]
[Termination "Olisingapore won by resignation"]

1. e4 {[%clk 0:04:57.1]} 1... c5 {[%clk 0:04:58.8]} 2. d4 {[%clk 0:04:55]} 2...
cxd4 {[%clk 0:04:57.7]} 3. c3 {[%clk 0:04:53.7]} 3... dxc3 {[%clk 0:04:57.6]} 4.
Nxc3 {[%clk 0:04:52.9]} 4... Nc6 {[%clk 0:04:57.3]} 5. Nf3 {[%clk 0:04:51.2]}
5... e6 {[%clk 0:04:57.1]} 6. Bc4 {[%clk 0:04:48.7]} 6... Nf6 {[%clk 0:04:52.8]}
7. O-O {[%clk 0:04:46.2]} 7... d6 {[%clk 0:04:42.8]} 8. Qe2 {[%clk 0:04:45]}
8... Qc7 {[%clk 0:04:39.7]} 9. Rd1 {[%clk 0:04:41.4]} 9... a6 {[%clk 0:04:35.6]}
10. Bg5 {[%clk 0:04:40.3]} 10... Be7 {[%clk 0:04:32.4]} 11. Rac1 {[%clk
0:04:38.3]} 11... O-O {[%clk 0:04:30.4]} 12. Bb3 {[%clk 0:04:36.6]} 12... b5
{[%clk 0:04:27.2]} 13. e5 {[%clk 0:04:08.3]} 13... dxe5 {[%clk 0:04:19.3]} 14.
Ne4 {[%clk 0:03:46.3]} 14... Nxe4 {[%clk 0:03:57.1]} 15. Bxe7 {[%clk 0:03:42.1]}
15... Qxe7 {[%clk 0:03:43.3]} 16. Qxe4 {[%clk 0:03:40]} 16... Bb7 {[%clk
0:03:40.9]} 17. Rxc6 {[%clk 0:03:36.2]} 17... Rac8 {[%clk 0:03:35.6]} 18. Rdc1
{[%clk 0:03:33.7]} 18... f5 {[%clk 0:03:32]} 19. Qxe5 {[%clk 0:03:20]} 19...
Rxc6 {[%clk 0:03:28]} 20. Rxc6 {[%clk 0:03:18.2]} 20... Bxc6 {[%clk 0:03:26.6]}
21. Bxe6+ {[%clk 0:03:17.2]} 21... Kh8 {[%clk 0:03:22.2]} 22. Nd4 {[%clk
0:03:16.3]} 22... Rd8 {[%clk 0:02:59.3]} 23. h3 {[%clk 0:03:06.5]} 23... Rxd4
{[%clk 0:02:50.5]} 24. Qxd4 {[%clk 0:03:03.5]} 24... Qxe6 {[%clk 0:02:49.8]} 25.
Qd8+ {[%clk 0:03:00.5]} 25... Qe8 {[%clk 0:02:48.2]} 26. Qd6 {[%clk 0:02:59.1]}
26... Qe4 {[%clk 0:02:26.9]} 0-1

[Event "Live Chess"]
[Site "Chess.com"]
[Date "2023.05.20"]
[Round "-"]
[White "raminguy"]
[Black "PantherCal"]
[Result "1-0"]
[WhiteElo "1983"]
[BlackElo "1807"]
[TimeControl "300"]
[EndTime "11:35:45 PDT"]
[Termination "raminguy won by resignation"]

1. d4 {[%clk 0:04:59.1]} 1... d5 {[%clk 0:04:54.2]} 2. Nc3 {[%clk 0:04:58.6]}
2... c6 {[%clk 0:04:54.1]} 3. Bf4 {[%clk 0:04:57.7]} 3... Bf5 {[%clk 0:04:52.9]}
4. e3 {[%clk 0:04:56.7]} 4... Nf6 {[%clk 0:04:51.8]} 5. Nf3 {[%clk 0:04:56.1]}
5... e6 {[%clk 0:04:50.8]} 6. Ne5 {[%clk 0:04:55.7]} 6... Nbd7 {[%clk
0:04:48.9]} 7. g4 {[%clk 0:04:54.8]} 7... Bg6 {[%clk 0:04:29.6]} 8. h4 {[%clk
0:04:52.9]} 8... h6 {[%clk 0:04:21.6]} 9. Nxg6 {[%clk 0:04:51.2]} 9... fxg6
{[%clk 0:04:19]} 10. Qd3 {[%clk 0:04:50.9]} 10... Kf7 {[%clk 0:04:11.9]} 11. h5
{[%clk 0:04:49.8]} 11... gxh5 {[%clk 0:04:08.9]} 12. gxh5 {[%clk 0:04:48.4]}
12... Bb4 {[%clk 0:04:01.4]} 13. Qg6+ {[%clk 0:04:45.3]} 13... Kf8 {[%clk
0:04:01.3]} 14. Bh3 {[%clk 0:04:42.9]} 14... Qe7 {[%clk 0:03:59.7]} 15. Rg1
{[%clk 0:04:41.5]} 15... Ne4 {[%clk 0:03:49]} 16. Ke2 {[%clk 0:04:27]} 16...
Bxc3 {[%clk 0:03:46.8]} 17. bxc3 {[%clk 0:04:24.9]} 17... Ndf6 {[%clk 0:03:45]}
18. Bxe6 {[%clk 0:04:06.7]} 18... Nxc3+ {[%clk 0:03:39]} 19. Kd3 {[%clk
0:04:01.2]} 19... Nce4 {[%clk 0:03:32.2]} 20. f3 {[%clk 0:03:54.5]} 20... Nd6
{[%clk 0:03:25.5]} 21. Bxd6 {[%clk 0:03:52.4]} 1-0

[Event "Live Chess"]
[Site "Chess.com"]
[Date "2023.05.20"]
[Round "-"]
[White "MaximKhimchenko"]
[Black "ViktorTheCoolBoy"]
[Result "0-1"]
[WhiteElo "1347"]
[BlackElo "2543"]
[TimeControl "300"]
[EndTime "11:36:04 PDT"]
[Termination "ViktorTheCoolBoy won by resignation"]

1. e4 {[%clk 0:04:58.1]} 1... c5 {[%clk 0:04:58]} 2. Nf3 {[%clk 0:04:58]} 2...
d6 {[%clk 0:04:56.9]} 3. d4 {[%clk 0:04:57.9]} 3... cxd4 {[%clk 0:04:56.5]} 4.
Nxd4 {[%clk 0:04:57.8]} 4... Nf6 {[%clk 0:04:55.7]} 5. Nc3 {[%clk 0:04:42.8]}
5... a6 {[%clk 0:04:50.3]} 6. Bg5 {[%clk 0:04:40.5]} 6... e6 {[%clk 0:04:48.3]}
7. Bd3 {[%clk 0:04:37.2]} 7... Nbd7 {[%clk 0:04:42]} 8. O-O {[%clk 0:04:34.5]}
8... Be7 {[%clk 0:04:39.5]} 9. Bxf6 {[%clk 0:04:19.4]} 9... Nxf6 {[%clk
0:04:36.4]} 10. Nf3 {[%clk 0:04:19.3]} 10... O-O {[%clk 0:04:33.3]} 11. Re1
{[%clk 0:04:16.7]} 11... Qc7 {[%clk 0:04:31.9]} 12. e5 {[%clk 0:04:12.1]} 12...
dxe5 {[%clk 0:04:30.5]} 13. Nxe5 {[%clk 0:04:12]} 13... Bd6 {[%clk 0:04:29.2]}
14. Nf3 {[%clk 0:04:08.4]} 14... b5 {[%clk 0:04:27.2]} 15. Qe2 {[%clk
0:04:02.6]} 15... Bb7 {[%clk 0:04:25.1]} 16. Be4 {[%clk 0:04:02.5]} 16... Nxe4
{[%clk 0:04:23.4]} 17. Nxe4 {[%clk 0:04:02.4]} 17... Be7 {[%clk 0:04:21.9]} 18.
Nfg5 {[%clk 0:04:00.7]} 18... h6 {[%clk 0:04:19.3]} 19. Qh5 {[%clk 0:03:57.6]}
0-1

[Event "Live Chess"]
[Site "Chess.com"]
[Date "2023.05.20"]
[Round "-"]
[White "lightningorderyt"]
[Black "Chesscoach_Golichenko"]
[Result "0-1"]
[WhiteElo "558"]
[BlackElo "2654"]
[TimeControl "300"]
[EndTime "11:36:05 PDT"]
[Termination "Chesscoach_Golichenko won by resignation"]

1. d4 {[%clk 0:04:53.4]} 1... d5 {[%clk 0:04:56.5]} 2. c4 {[%clk 0:04:51.8]}
2... e6 {[%clk 0:04:55]} 3. Nc3 {[%clk 0:04:49.9]} 3... Nf6 {[%clk 0:04:52.8]}
4. Bg5 {[%clk 0:04:46.6]} 4... Nbd7 {[%clk 0:04:45.4]} 5. e3 {[%clk 0:04:43.2]}
5... Bb4 {[%clk 0:04:41.4]} 6. Ne2 {[%clk 0:04:35.3]} 6... h6 {[%clk 0:04:34.3]}
7. Bh4 {[%clk 0:04:33.6]} 7... c5 {[%clk 0:04:30.9]} 8. a3 {[%clk 0:04:15.6]}
8... Bxc3+ {[%clk 0:04:27.3]} 9. Nxc3 {[%clk 0:04:12.7]} 9... cxd4 {[%clk
0:04:22.1]} 10. exd4 {[%clk 0:04:08.8]} 10... dxc4 {[%clk 0:04:20.5]} 11. Bxc4
{[%clk 0:04:05.1]} 11... O-O {[%clk 0:04:16]} 12. O-O {[%clk 0:04:03.5]} 12...
a6 {[%clk 0:04:13.7]} 13. Bb3 {[%clk 0:03:46.5]} 13... b5 {[%clk 0:04:11.4]} 14.
a4 {[%clk 0:03:32.5]} 14... b4 {[%clk 0:04:02.9]} 15. Ne2 {[%clk 0:03:17.9]}
15... Bb7 {[%clk 0:03:55.3]} 16. Nf4 {[%clk 0:03:05.1]} 16... g5 {[%clk
0:03:51.4]} 17. Nxe6 {[%clk 0:02:46.5]} 17... fxe6 {[%clk 0:03:46.1]} 18. Bg3
{[%clk 0:02:43.4]} 18... Kg7 {[%clk 0:03:42]} 19. Bxe6 {[%clk 0:02:25.5]} 19...
Bd5 {[%clk 0:03:38.4]} 20. Bxd5 {[%clk 0:02:07.8]} 20... Nxd5 {[%clk 0:03:35]}
21. Qf3 {[%clk 0:01:49.4]} 21... Rxf3 {[%clk 0:03:30.9]} 0-1

[Event "Live Chess"]
[Site "Chess.com"]
[Date "2023.05.20"]
[Round "-"]
[White "alexlines8"]
[Black "Bot_Boy"]
[Result "1-0"]
[WhiteElo "1255"]
[BlackElo "332"]
[TimeControl "300"]
[EndTime "11:36:06 PDT"]
[Termination "alexlines8 won on time"]

1. e4 {[%clk 0:04:56.9]} 1... c6 {[%clk 0:04:54.8]} 2. d4 {[%clk 0:04:55.3]}
2... d5 {[%clk 0:04:53.4]} 3. f3 {[%clk 0:04:54.5]} 3... dxe4 {[%clk 0:04:50.6]}
4. fxe4 {[%clk 0:04:54.4]} 4... e6 {[%clk 0:04:44.5]} 5. Nc3 {[%clk 0:04:51.4]}
5... Nd7 {[%clk 0:04:42.2]} 6. Bc4 {[%clk 0:04:50]} 6... Qf6 {[%clk 0:04:27.5]}
7. Nf3 {[%clk 0:04:45.3]} 7... b5 {[%clk 0:04:17.5]} 8. Bb3 {[%clk 0:04:42.8]}
8... h6 {[%clk 0:04:02.8]} 9. O-O {[%clk 0:04:41.3]} 9... Bb7 {[%clk 0:03:46]}
10. Ne5 {[%clk 0:04:35]} 10... Qh4 {[%clk 0:02:38.3]} 11. Nxd7 {[%clk
0:04:17.2]} 11... Kxd7 {[%clk 0:02:33.4]} 12. Rxf7+ {[%clk 0:04:12.1]} 12... Be7
{[%clk 0:01:59.4]} 13. Rxg7 {[%clk 0:03:52.3]} 13... Rf8 {[%clk 0:01:28.2]} 14.
Be3 {[%clk 0:03:30.9]} 14... Nf6 {[%clk 0:00:58.5]} 15. d5 {[%clk 0:03:21.3]}
15... cxd5 {[%clk 0:00:44.7]} 16. exd5 {[%clk 0:03:19.6]} 16... e5 {[%clk
0:00:30.7]} 17. Nxb5 {[%clk 0:03:08.4]} 17... Ne4 {[%clk 0:00:13.9]} 18. Qe2
{[%clk 0:02:44.8]} 18... Rf2 {[%clk 0:00:08.3]} 19. Bxf2 {[%clk 0:02:40.6]}
19... Qxf2+ {[%clk 0:00:05.4]} 20. Qxf2 {[%clk 0:02:38.8]} 20... Nxf2 {[%clk
0:00:03.6]} 21. Kxf2 {[%clk 0:02:38.7]} 21... Rf8+ {[%clk 0:00:01.5]} 22. Kg1
{[%clk 0:02:36.6]} 1-0

[Event "Live Chess"]
[Site "Chess.com"]
[Date "2023.05.20"]
[Round "-"]
[White "Andysav3"]
[Black "Hacker_2009"]
[Result "0-1"]
[WhiteElo "1695"]
[BlackElo "1931"]
[TimeControl "300"]
[EndTime "11:36:17 PDT"]
[Termination "Hacker_2009 won on time"]

1. e4 {[%clk 0:04:58.5]} 1... c5 {[%clk 0:04:58.3]} 2. c3 {[%clk 0:04:57.1]}
2... d6 {[%clk 0:04:55.7]} 3. d4 {[%clk 0:04:53.3]} 3... cxd4 {[%clk 0:04:54.9]}
4. cxd4 {[%clk 0:04:50.2]} 4... Nf6 {[%clk 0:04:53.3]} 5. Nc3 {[%clk 0:04:32]}
5... e6 {[%clk 0:04:52.4]} 6. Bg5 {[%clk 0:04:19.6]} 6... Be7 {[%clk 0:04:51.6]}
7. e5 {[%clk 0:04:13.5]} 7... dxe5 {[%clk 0:04:48.2]} 8. dxe5 {[%clk 0:04:11.8]}
8... Nd5 {[%clk 0:04:47.4]} 9. Bxe7 {[%clk 0:03:48.4]} 9... Qxe7 {[%clk
0:04:44.7]} 10. Nxd5 {[%clk 0:03:32.3]} 10... exd5 {[%clk 0:04:41.3]} 11. Qxd5
{[%clk 0:03:30.9]} 11... Nc6 {[%clk 0:04:39.6]} 12. Nf3 {[%clk 0:03:23.8]} 12...
Be6 {[%clk 0:04:38.2]} 13. Qd6 {[%clk 0:03:03.5]} 13... Qxd6 {[%clk 0:04:34.2]}
14. exd6 {[%clk 0:03:02.4]} 14... Rd8 {[%clk 0:04:33.8]} 15. Rd1 {[%clk
0:02:56.2]} 15... Nb4 {[%clk 0:04:28.8]} 16. Bb5+ {[%clk 0:02:51.9]} 16... Bd7
{[%clk 0:04:26.6]} 17. Bxd7+ {[%clk 0:02:41.8]} 17... Kxd7 {[%clk 0:04:24.9]}
18. O-O {[%clk 0:02:16.5]} 18... Nxa2 {[%clk 0:04:19.1]} 19. Ne5+ {[%clk
0:02:03]} 19... Ke6 {[%clk 0:04:12.4]} 20. Rfe1 {[%clk 0:01:56.3]} 20... Kf6
{[%clk 0:04:09.9]} 21. Ng4+ {[%clk 0:01:32.6]} 21... Kf5 {[%clk 0:04:07.5]} 22.
Ne3+ {[%clk 0:01:24.7]} 22... Kg6 {[%clk 0:04:03.8]} 23. Ra1 {[%clk 0:01:18.1]}
23... Nb4 {[%clk 0:03:59.8]} 24. Rxa7 {[%clk 0:01:16.9]} 24... Rxd6 {[%clk
0:03:58.9]} 25. Rxb7 {[%clk 0:01:15.1]} 25... Nd5 {[%clk 0:03:57.3]} 26. Nxd5
{[%clk 0:01:08.9]} 26... Rxd5 {[%clk 0:03:56]} 27. b4 {[%clk 0:01:06.4]} 27...
Rhd8 {[%clk 0:03:53.5]} 28. g3 {[%clk 0:01:04.9]} 28... Rd1 {[%clk 0:03:52.2]}
29. Rxd1 {[%clk 0:01:03.2]} 29... Rxd1+ {[%clk 0:03:50.7]} 30. Kg2 {[%clk
0:01:02.8]} 30... Rb1 {[%clk 0:03:50.6]} 31. b5 {[%clk 0:01:01.1]} 31... f6
{[%clk 0:03:50.5]} 32. Rb8 {[%clk 0:00:59.6]} 32... h6 {[%clk 0:03:50]} 33. b6
{[%clk 0:00:58.6]} 33... h5 {[%clk 0:03:49.1]} 34. h4 {[%clk 0:00:57.6]} 34...
Rb2 {[%clk 0:03:47.8]} 35. Kf3 {[%clk 0:00:55.5]} 35... Rb3+ {[%clk 0:03:47.2]}
36. Ke4 {[%clk 0:00:52.4]} 36... Rb5 {[%clk 0:03:45]} 37. b7 {[%clk 0:00:49.7]}
37... Kh7 {[%clk 0:03:42.4]} 38. Kf3 {[%clk 0:00:46.6]} 38... Rb4 {[%clk
0:03:40.6]} 39. Ke3 {[%clk 0:00:45.2]} 39... g5 {[%clk 0:03:38.8]} 40. hxg5
{[%clk 0:00:43.6]} 40... fxg5 {[%clk 0:03:38]} 41. f4 {[%clk 0:00:39.6]} 41...
gxf4+ {[%clk 0:03:28.1]} 42. gxf4 {[%clk 0:00:38.3]} 42... h4 {[%clk 0:03:27]}
43. Kf3 {[%clk 0:00:32.2]} 43... Rb3+ {[%clk 0:03:25.1]} 44. Kg2 {[%clk
0:00:30.9]} 44... Rg3+ {[%clk 0:03:21.9]} 45. Kh2 {[%clk 0:00:29.7]} 45... Rb3
{[%clk 0:03:21.8]} 46. f5 {[%clk 0:00:22.5]} 46... Kg7 {[%clk 0:03:16.5]} 47.
Rc8 {[%clk 0:00:18.6]} 47... Rxb7 {[%clk 0:03:14.3]} 48. Rc4 {[%clk 0:00:18.3]}
48... Kf6 {[%clk 0:03:08.6]} 49. Rxh4 {[%clk 0:00:17.1]} 49... Kxf5 {[%clk
0:03:08.5]} 50. Rh5+ {[%clk 0:00:16.2]} 50... Kg4 {[%clk 0:03:07.5]} 51. Rh6
{[%clk 0:00:14.9]} 51... Rb2+ {[%clk 0:03:07.1]} 52. Kg1 {[%clk 0:00:13.7]}
52... Kg3 {[%clk 0:03:05.1]} 53. Rg6+ {[%clk 0:00:12.7]} 53... Kf4 {[%clk
0:03:03.9]} 54. Rf6+ {[%clk 0:00:11.9]} 54... Kg5 {[%clk 0:03:02.7]} 55. Rf8
{[%clk 0:00:10.3]} 55... Rb1+ {[%clk 0:03:02.6]} 56. Kg2 {[%clk 0:00:08.7]}
56... Rb4 {[%clk 0:03:00.5]} 57. Rg8+ {[%clk 0:00:07.2]} 57... Kf6 {[%clk
0:02:59.5]} 58. Rf8+ {[%clk 0:00:06.3]} 58... Ke7 {[%clk 0:02:58.7]} 59. Rf2
{[%clk 0:00:05.7]} 59... Rc4 {[%clk 0:02:57.8]} 60. Re2+ {[%clk 0:00:05.5]}
60... Kd6 {[%clk 0:02:56.7]} 61. Rf2 {[%clk 0:00:05.2]} 61... Re4 {[%clk
0:02:55.3]} 0-1

[Event "Live Chess"]
[Site "Chess.com"]
[Date "2023.05.20"]
[Round "-"]
[White "Horseymobile"]
[Black "Man-Del-Brot"]
[Result "0-1"]
[WhiteElo "1214"]
[BlackElo "1176"]
[TimeControl "300"]
[EndTime "11:36:19 PDT"]
[Termination "Man-Del-Brot won by resignation"]

1. d4 {[%clk 0:04:59.1]} 1... Nf6 {[%clk 0:04:57.8]} 2. c4 {[%clk 0:04:57.8]}
2... e5 {[%clk 0:04:56.8]} 3. dxe5 {[%clk 0:04:56.1]} 3... Ng4 {[%clk
0:04:55.7]} 4. Nf3 {[%clk 0:04:53.3]} 4... d6 {[%clk 0:04:54.7]} 5. e3 {[%clk
0:04:49.8]} 5... Nc6 {[%clk 0:04:47.3]} 6. Be2 {[%clk 0:04:44.4]} 6... Ngxe5
{[%clk 0:04:45.3]} 7. O-O {[%clk 0:04:39.9]} 7... Nxf3+ {[%clk 0:04:43.3]} 8.
Bxf3 {[%clk 0:04:37.3]} 8... Ne5 {[%clk 0:04:42.9]} 9. Be2 {[%clk 0:04:01.3]}
9... Be6 {[%clk 0:04:30.7]} 10. b3 {[%clk 0:03:55]} 10... Be7 {[%clk 0:04:25.3]}
11. Bb2 {[%clk 0:03:53.7]} 11... Bf6 {[%clk 0:04:22.5]} 12. Nc3 {[%clk
0:03:48.8]} 12... O-O {[%clk 0:04:15.3]} 13. Ne4 {[%clk 0:03:40.6]} 13... Re8
{[%clk 0:03:37]} 14. Qc2 {[%clk 0:02:58.1]} 14... Bf5 {[%clk 0:03:29.7]} 15.
Rad1 {[%clk 0:02:08.5]} 15... Qe7 {[%clk 0:03:20]} 16. Bd3 {[%clk 0:01:36.2]}
16... Nxd3 {[%clk 0:03:14]} 17. Nxf6+ {[%clk 0:01:34.8]} 17... gxf6 {[%clk
0:03:10.3]} 18. Rxd3 {[%clk 0:01:29.5]} 18... Bxd3 {[%clk 0:03:08.6]} 19. Qxd3
{[%clk 0:01:29.4]} 19... Qe4 {[%clk 0:03:05.4]} 20. Qxe4 {[%clk 0:01:22.8]}
20... Rxe4 {[%clk 0:03:03.8]} 21. Bxf6 {[%clk 0:01:22.4]} 21... a5 {[%clk
0:02:57.9]} 22. Rd1 {[%clk 0:01:21.1]} 22... a4 {[%clk 0:02:55.9]} 23. Rd5
{[%clk 0:01:14.8]} 23... axb3 {[%clk 0:02:50.3]} 24. Rg5+ {[%clk 0:01:11.6]}
24... Kf8 {[%clk 0:02:43.8]} 25. Bg7+ {[%clk 0:00:54.3]} 25... Ke7 {[%clk
0:02:40.8]} 26. axb3 {[%clk 0:00:46.2]} 26... f6 {[%clk 0:02:36]} 0-1

[Event "Live Chess"]
[Site "Chess.com"]
[Date "2023.05.20"]
[Round "-"]
[White "olahgito"]
[Black "DRS44"]
[Result "0-1"]
[WhiteElo "730"]
[BlackElo "1438"]
[TimeControl "300"]
[EndTime "11:36:21 PDT"]
[Termination "DRS44 won by checkmate"]

1. e4 {[%clk 0:04:59]} 1... e5 {[%clk 0:04:51.3]} 2. Nf3 {[%clk 0:04:58.3]} 2...
d6 {[%clk 0:04:45.2]} 3. d4 {[%clk 0:04:54.7]} 3... f5 {[%clk 0:04:39.8]} 4.
exf5 {[%clk 0:04:45.4]} 4... e4 {[%clk 0:04:31.6]} 5. Nfd2 {[%clk 0:04:39.1]}
5... Bxf5 {[%clk 0:04:26.1]} 6. Nc3 {[%clk 0:04:35.5]} 6... Nc6 {[%clk
0:04:10.1]} 7. Ndxe4 {[%clk 0:04:33.3]} 7... Bxe4 {[%clk 0:04:00.9]} 8. Nxe4
{[%clk 0:04:32]} 8... Qe7 {[%clk 0:03:51.8]} 9. Qe2 {[%clk 0:04:31.2]} 9...
O-O-O {[%clk 0:03:42.9]} 10. c3 {[%clk 0:04:27.7]} 10... Nf6 {[%clk 0:03:37.1]}
11. Nxf6 {[%clk 0:04:24.8]} 11... Qxf6 {[%clk 0:03:30.5]} 12. Be3 {[%clk
0:04:19.7]} 12... Re8 {[%clk 0:03:23.3]} 13. O-O-O {[%clk 0:04:16.5]} 13... d5
{[%clk 0:03:14.7]} 14. Re1 {[%clk 0:03:47.5]} 14... Bd6 {[%clk 0:02:51.9]} 15.
Qd2 {[%clk 0:03:46]} 15... Qe7 {[%clk 0:02:45.4]} 16. Bb5 {[%clk 0:03:33.5]}
16... a6 {[%clk 0:02:25.6]} 17. Bxc6 {[%clk 0:03:32.4]} 17... bxc6 {[%clk
0:02:22.4]} 18. Bg5 {[%clk 0:03:31.1]} 18... Qf8 {[%clk 0:02:10.7]} 19. Rxe8+
{[%clk 0:03:21.7]} 19... Qxe8 {[%clk 0:02:07]} 20. Re1 {[%clk 0:03:21]} 20...
Qg6 {[%clk 0:02:02.4]} 21. g3 {[%clk 0:03:12.9]} 21... Re8 {[%clk 0:01:52.2]}
22. Rxe8+ {[%clk 0:03:03.8]} 22... Qxe8 {[%clk 0:01:43.9]} 23. Qe3 {[%clk
0:03:02.4]} 23... Qg6 {[%clk 0:01:35.7]} 24. Bf4 {[%clk 0:02:53]} 24... Bxf4
{[%clk 0:01:28.8]} 25. Qxf4 {[%clk 0:02:52.9]} 25... Qd3 {[%clk 0:01:22.6]} 26.
Qe3 {[%clk 0:02:44.8]} 26... Qf1+ {[%clk 0:01:17.3]} 27. Kd2 {[%clk 0:02:41.2]}
27... Qb1 {[%clk 0:01:12.8]} 28. Qe8+ {[%clk 0:02:27.8]} 28... Kb7 {[%clk
0:01:08.1]} 29. Qh8 {[%clk 0:02:26.5]} 29... Qxb2+ {[%clk 0:01:02.5]} 30. Ke3
{[%clk 0:02:25.4]} 30... Qxc3+ {[%clk 0:00:59.6]} 31. Kf4 {[%clk 0:02:23.9]}
31... Qxd4+ {[%clk 0:00:56.7]} 32. Kf3 {[%clk 0:02:23.2]} 32... Qe4# {[%clk
0:00:52.4]} 0-1

[Event "Live Chess"]
[Site "Chess.com"]
[Date "2023.05.20"]
[Round "-"]
[White "WilliamofOrange16th"]
[Black "Pandreq"]
[Result "1-0"]
[WhiteElo "1880"]
[BlackElo "1277"]
[TimeControl "300"]
[EndTime "11:36:26 PDT"]
[Termination "WilliamofOrange16th won by resignation"]

1. e4 {[%clk 0:04:56.4]} 1... Nf6 {[%clk 0:04:57.9]} 2. Nc3 {[%clk 0:04:46.8]}
2... Nc6 {[%clk 0:04:54.3]} 3. Nf3 {[%clk 0:04:44.5]} 3... d6 {[%clk 0:04:52.7]}
4. h3 {[%clk 0:04:40.2]} 4... e5 {[%clk 0:04:50.1]} 5. d4 {[%clk 0:04:38.5]}
5... exd4 {[%clk 0:04:48.6]} 6. Nxd4 {[%clk 0:04:38.4]} 6... Nxd4 {[%clk
0:04:45.4]} 7. Qxd4 {[%clk 0:04:38.3]} 7... c5 {[%clk 0:04:44.8]} 8. Bb5+ {[%clk
0:04:34.8]} 8... Bd7 {[%clk 0:04:34.6]} 9. Qd3 {[%clk 0:04:30.5]} 9... Bxb5
{[%clk 0:04:24.2]} 10. Qxb5+ {[%clk 0:04:30.4]} 10... Qd7 {[%clk 0:04:18.5]} 11.
O-O {[%clk 0:04:24.9]} 11... a6 {[%clk 0:04:14.8]} 12. Qxd7+ {[%clk 0:04:21.5]}
12... Nxd7 {[%clk 0:04:13.6]} 13. Nd5 {[%clk 0:04:19.1]} 13... Rc8 {[%clk
0:04:08.4]} 14. Bf4 {[%clk 0:04:15.8]} 14... g6 {[%clk 0:03:50.1]} 15. c3 {[%clk
0:04:12.3]} 15... Rc6 {[%clk 0:03:45.9]} 16. Rad1 {[%clk 0:04:03.5]} 16... Bg7
{[%clk 0:03:40.4]} 17. Rd2 {[%clk 0:03:50.5]} 17... Ne5 {[%clk 0:03:30.3]} 18.
Bxe5 {[%clk 0:03:47.1]} 18... Bxe5 {[%clk 0:03:28.8]} 19. f4 {[%clk 0:03:45.4]}
19... Bg7 {[%clk 0:03:25.4]} 20. g4 {[%clk 0:03:41.5]} 20... O-O {[%clk
0:03:23.6]} 21. Ne7+ {[%clk 0:03:38.8]} 21... Kh8 {[%clk 0:03:17.9]} 22. Nxc6
{[%clk 0:03:38.7]} 22... bxc6 {[%clk 0:03:16.2]} 23. Rxd6 {[%clk 0:03:38.3]}
23... Re8 {[%clk 0:03:08.6]} 24. Re1 {[%clk 0:03:31]} 24... Re6 {[%clk
0:03:04.4]} 25. Rd8+ {[%clk 0:03:28.7]} 1-0